[Event "*** Titled Tuesday Blitz"]
[Site "Chess.com"]
[Date "2020.05.26"]
[Round "1"]
[White "ulkaf961"]
[Black "MartinCerveny"]
[Result "1-0"]
[WhiteElo "2182"]
[BlackElo "2506"]
[TimeControl "180+1"]
[EndTime "10:05:43 PDT"]
[Termination "ulkaf961 won by resignation"]

1. b3 {[%clk 0:03:00.1]} 1... d5 {[%clk 0:02:59.2]} 2. Bb2 {[%clk 0:03:00.1]}
2... Nf6 {[%clk 0:02:59.6]} 3. g3 {[%clk 0:03:00.3]} 3... g6 {[%clk 0:02:57.9]}
4. Bg2 {[%clk 0:03:00.3]} 4... Bg7 {[%clk 0:02:57.8]} 5. Nf3 {[%clk 0:03:00.9]}
5... O-O {[%clk 0:02:56.9]} 6. c4 {[%clk 0:03:00.4]} 6... c5 {[%clk 0:02:54.9]}
7. O-O {[%clk 0:03:00.4]} 7... d4 {[%clk 0:02:54.2]} 8. e3 {[%clk 0:02:58]} 8...
Nc6 {[%clk 0:02:53.8]} 9. exd4 {[%clk 0:02:57.3]} 9... cxd4 {[%clk 0:02:53.9]}
10. Re1 {[%clk 0:02:55]} 10... a5 {[%clk 0:02:50.9]} 11. a3 {[%clk 0:02:54.2]}
11... Bg4 {[%clk 0:02:46.7]} 12. h3 {[%clk 0:02:48]} 12... Bxf3 {[%clk 0:02:46]}
13. Bxf3 {[%clk 0:02:40.8]} 13... Re8 {[%clk 0:02:45.1]} 14. d3 {[%clk
0:02:34.3]} 14... e5 {[%clk 0:02:44.4]} 15. Nd2 {[%clk 0:02:33.9]} 15... Nd7
{[%clk 0:02:43]} 16. Rb1 {[%clk 0:02:30.5]} 16... f5 {[%clk 0:02:30.3]} 17. Bd5+
{[%clk 0:02:30.2]} 17... Kh8 {[%clk 0:02:29.6]} 18. Nf3 {[%clk 0:02:30]} 18...
Qc7 {[%clk 0:02:26.9]} 19. Ng5 {[%clk 0:02:28.9]} 19... Bf6 {[%clk 0:02:13.7]}
20. Nf7+ {[%clk 0:02:19.5]} 20... Kg7 {[%clk 0:02:08.1]} 21. Qd2 {[%clk
0:02:19.3]} 21... f4 {[%clk 0:01:59.3]} 22. gxf4 {[%clk 0:02:10.8]} 22... exf4
{[%clk 0:02:00.2]} 23. h4 {[%clk 0:01:41.9]} 23... Rf8 {[%clk 0:01:49]} 24. Ng5
{[%clk 0:01:41.5]} 24... Bxg5 {[%clk 0:01:48.3]} 25. hxg5 {[%clk 0:01:41.6]}
25... Rae8 {[%clk 0:01:46.3]} 26. Bxc6 {[%clk 0:01:40]} 26... bxc6 {[%clk
0:01:44.9]} 27. Bxd4+ {[%clk 0:01:40]} 27... Kg8 {[%clk 0:01:44.9]} 28. Bb2
{[%clk 0:01:35.8]} 28... Rxe1+ {[%clk 0:01:36.5]} 29. Rxe1 {[%clk 0:01:35.3]}
29... Rf5 {[%clk 0:01:36.9]} 30. Qc3 {[%clk 0:01:34.2]} 30... Rxg5+ {[%clk
0:01:04.3]} 31. Kf1 {[%clk 0:01:34.4]} 31... Ne5 {[%clk 0:00:44]} 32. Rxe5
{[%clk 0:01:34.1]} 32... Rxe5 {[%clk 0:00:44.6]} 33. Qxe5 {[%clk 0:01:34.3]}
33... Qd7 {[%clk 0:00:35]} 34. Qh8+ {[%clk 0:01:31.4]} 34... Kf7 {[%clk
0:00:34.9]} 35. Qxh7+ {[%clk 0:01:22.5]} 1-0

[Event "*** Titled Tuesday Blitz"]
[Site "Chess.com"]
[Date "2020.05.26"]
[Round "1"]
[White "tylityli"]
[Black "giantslayer83"]
[Result "0-1"]
[WhiteElo "2309"]
[BlackElo "2666"]
[TimeControl "180+1"]
[EndTime "10:05:50 PDT"]
[Termination "giantslayer83 won by resignation"]

1. d4 {[%clk 0:03:00.9]} 1... Nf6 {[%clk 0:02:57.4]} 2. c4 {[%clk 0:03:00.5]}
2... e6 {[%clk 0:02:57.2]} 3. Nc3 {[%clk 0:03:00.5]} 3... Bb4 {[%clk 0:02:56.9]}
4. e3 {[%clk 0:03:00.6]} 4... O-O {[%clk 0:02:55.8]} 5. Ne2 {[%clk 0:03:01.1]}
5... Re8 {[%clk 0:02:55.2]} 6. a3 {[%clk 0:03:01.3]} 6... Bf8 {[%clk 0:02:54.7]}
7. d5 {[%clk 0:03:00.6]} 7... a5 {[%clk 0:02:53]} 8. g3 {[%clk 0:02:59.2]} 8...
exd5 {[%clk 0:02:48.4]} 9. cxd5 {[%clk 0:02:58.7]} 9... Na6 {[%clk 0:02:48]} 10.
Bg2 {[%clk 0:02:58.2]} 10... d6 {[%clk 0:02:44.3]} 11. O-O {[%clk 0:02:56.1]}
11... Nc5 {[%clk 0:02:44.3]} 12. h3 {[%clk 0:02:53.7]} 12... a4 {[%clk 0:02:43]}
13. e4 {[%clk 0:02:51]} 13... Nfxe4 {[%clk 0:02:41.7]} 14. Nxe4 {[%clk
0:02:50.5]} 14... Nxe4 {[%clk 0:02:42.6]} 15. Nc3 {[%clk 0:02:49.6]} 15... Nxc3
{[%clk 0:02:40.5]} 16. bxc3 {[%clk 0:02:49.4]} 16... g6 {[%clk 0:02:40.8]} 17.
c4 {[%clk 0:02:40.2]} 17... Bg7 {[%clk 0:02:39.1]} 18. Ra2 {[%clk 0:02:40.1]}
18... Bd7 {[%clk 0:02:35]} 19. Bb2 {[%clk 0:02:39]} 19... b6 {[%clk 0:02:30.7]}
20. Bxg7 {[%clk 0:02:36.5]} 20... Kxg7 {[%clk 0:02:31.6]} 21. Qd4+ {[%clk
0:02:33.3]} 21... Qf6 {[%clk 0:02:31.1]} 22. Rd2 {[%clk 0:02:33.2]} 22... Qxd4
{[%clk 0:02:29.3]} 23. Rxd4 {[%clk 0:02:33.4]} 23... Re2 {[%clk 0:02:29.9]} 24.
Re4 {[%clk 0:02:23.9]} 24... Rxe4 {[%clk 0:02:18.8]} 25. Bxe4 {[%clk 0:02:23]}
25... Bxh3 {[%clk 0:02:19.4]} 26. Rb1 {[%clk 0:02:21.4]} 26... Re8 {[%clk
0:02:18]} 27. Bd3 {[%clk 0:02:18.2]} 27... h5 {[%clk 0:02:13.6]} 28. Kh2 {[%clk
0:02:09.2]} 28... Bd7 {[%clk 0:02:10]} 29. Kg2 {[%clk 0:02:05.8]} 29... Kf6
{[%clk 0:02:07.6]} 30. Kf3 {[%clk 0:02:05.6]} 30... Bg4+ {[%clk 0:02:03.5]} 31.
Kg2 {[%clk 0:02:03.3]} 31... Bf5 {[%clk 0:01:37.9]} 32. Bxf5 {[%clk 0:01:59.5]}
32... Kxf5 {[%clk 0:01:38.8]} 33. Rb4 {[%clk 0:01:59.7]} 33... Ra8 {[%clk
0:01:38.7]} 34. Kf3 {[%clk 0:01:58.6]} 34... g5 {[%clk 0:01:35.8]} 35. Ke3
{[%clk 0:01:58.5]} 35... Ke5 {[%clk 0:01:33.5]} 36. f4+ {[%clk 0:01:57.9]} 36...
gxf4+ {[%clk 0:01:33.3]} 37. gxf4+ {[%clk 0:01:58.8]} 37... Kf5 {[%clk
0:01:33.9]} 38. Kf3 {[%clk 0:01:59.3]} 38... h4 {[%clk 0:01:33.2]} 39. Rb2
{[%clk 0:01:55.2]} 39... Rg8 {[%clk 0:01:32.1]} 40. Rb4 {[%clk 0:01:49.2]} 40...
Rg3+ {[%clk 0:01:31.3]} 41. Kf2 {[%clk 0:01:47.8]} 41... Rxa3 {[%clk 0:01:32.2]}
42. Kg2 {[%clk 0:01:39.3]} 42... Kg4 {[%clk 0:01:27.3]} 43. Kf2 {[%clk 0:01:35]}
43... f5 {[%clk 0:01:26.6]} 44. Rb1 {[%clk 0:01:22.3]} 44... h3 {[%clk
0:01:22.3]} 45. Rb4 {[%clk 0:01:07.9]} 45... Ra2+ {[%clk 0:01:13.1]} 46. Kf1
{[%clk 0:01:05.7]} 46... h2 {[%clk 0:01:12.7]} 0-1

[Event "*** Titled Tuesday Blitz"]
[Site "Chess.com"]
[Date "2020.05.26"]
[Round "1"]
[White "AttilaTurzo"]
[Black "Michaelson_11"]
[Result "1-0"]
[WhiteElo "2476"]
[BlackElo "2005"]
[TimeControl "180+1"]
[EndTime "10:05:50 PDT"]
[Termination "AttilaTurzo won by resignation"]

1. e4 {[%clk 0:03:00.9]} 1... c5 {[%clk 0:02:56.8]} 2. Nf3 {[%clk 0:03:00.6]}
2... Nc6 {[%clk 0:02:55.9]} 3. d4 {[%clk 0:03:01.5]} 3... cxd4 {[%clk
0:02:56.8]} 4. Nxd4 {[%clk 0:03:02.4]} 4... g6 {[%clk 0:02:56.1]} 5. c4 {[%clk
0:02:59.4]} 5... Nf6 {[%clk 0:02:53]} 6. Nc3 {[%clk 0:02:59]} 6... d6 {[%clk
0:02:50.3]} 7. Be2 {[%clk 0:02:57.6]} 7... Nxd4 {[%clk 0:02:44.7]} 8. Qxd4
{[%clk 0:02:58.5]} 8... Bg7 {[%clk 0:02:44.8]} 9. Qe3 {[%clk 0:02:57.9]} 9...
O-O {[%clk 0:02:43.3]} 10. O-O {[%clk 0:02:57.6]} 10... Be6 {[%clk 0:02:26]} 11.
Bd2 {[%clk 0:02:49.1]} 11... Rc8 {[%clk 0:02:20.9]} 12. b3 {[%clk 0:02:45.4]}
12... b6 {[%clk 0:02:12.5]} 13. f4 {[%clk 0:02:40.8]} 13... Bg4 {[%clk
0:01:58.1]} 14. e5 {[%clk 0:02:31.3]} 14... Re8 {[%clk 0:01:30.6]} 15. exf6
{[%clk 0:02:24.7]} 15... exf6 {[%clk 0:01:30.4]} 16. Qd3 {[%clk 0:02:21.4]}
16... Bxe2 {[%clk 0:01:24.6]} 17. Nxe2 {[%clk 0:02:22.3]} 17... f5 {[%clk
0:01:25]} 18. Bc3 {[%clk 0:02:16.7]} 18... Rxe2 {[%clk 0:01:13.3]} 19. Bxg7
{[%clk 0:02:15.8]} 19... Re4 {[%clk 0:01:13.4]} 20. Bb2 {[%clk 0:02:07.6]} 20...
Qc7 {[%clk 0:00:59.5]} 21. Qc3 {[%clk 0:02:04.1]} 21... Qc5+ {[%clk 0:00:59.4]}
22. Kh1 {[%clk 0:02:03.8]} 22... Kf8 {[%clk 0:00:59.2]} 23. Rae1 {[%clk
0:01:40.2]} 23... Rce8 {[%clk 0:00:50.3]} 24. Qg7+ {[%clk 0:01:34.4]} 24... Ke7
{[%clk 0:00:50.1]} 25. Bf6+ {[%clk 0:01:27.1]} 25... Ke6 {[%clk 0:00:48.9]} 26.
Rxe4+ {[%clk 0:01:26.4]} 26... fxe4 {[%clk 0:00:48.6]} 27. Bg5 {[%clk 0:01:23]}
27... Qf5 {[%clk 0:00:39.4]} 28. g4 {[%clk 0:01:10.1]} 1-0

[Event "*** Titled Tuesday Blitz"]
[Site "Chess.com"]
[Date "2020.05.26"]
[Round "1"]
[White "Belka1989"]
[Black "12teen"]
[Result "0-1"]
[WhiteElo "2372"]
[BlackElo "2735"]
[TimeControl "180+1"]
[EndTime "10:05:54 PDT"]
[Termination "12teen won by resignation"]

1. e4 {[%clk 0:03:00.9]} 1... e6 {[%clk 0:02:57.3]} 2. d4 {[%clk 0:03:01.1]}
2... b6 {[%clk 0:02:57.2]} 3. Nc3 {[%clk 0:03:02]} 3... Bb7 {[%clk 0:02:57.5]}
4. a3 {[%clk 0:03:02.1]} 4... Nf6 {[%clk 0:02:57.9]} 5. e5 {[%clk 0:03:01.9]}
5... Nd5 {[%clk 0:02:58]} 6. Nxd5 {[%clk 0:03:02.3]} 6... Bxd5 {[%clk
0:02:58.2]} 7. c4 {[%clk 0:03:02.9]} 7... Bb7 {[%clk 0:02:58.4]} 8. Nf3 {[%clk
0:03:03.4]} 8... d5 {[%clk 0:02:58.9]} 9. exd6 {[%clk 0:03:00.2]} 9... Bxd6
{[%clk 0:02:58.6]} 10. Be3 {[%clk 0:02:56.9]} 10... Nd7 {[%clk 0:02:57.9]} 11.
Be2 {[%clk 0:02:57.5]} 11... O-O {[%clk 0:02:57.7]} 12. O-O {[%clk 0:02:55.3]}
12... Qe7 {[%clk 0:02:57.6]} 13. b4 {[%clk 0:02:55.1]} 13... c5 {[%clk
0:02:54.6]} 14. bxc5 {[%clk 0:02:28.8]} 14... bxc5 {[%clk 0:02:54.4]} 15. Qd3
{[%clk 0:02:25]} 15... cxd4 {[%clk 0:02:48.7]} 16. Bxd4 {[%clk 0:02:20.2]} 16...
e5 {[%clk 0:02:38.7]} 17. c5 {[%clk 0:02:19.9]} 17... Nxc5 {[%clk 0:02:30.8]}
18. Bxc5 {[%clk 0:02:15.5]} 18... Bxc5 {[%clk 0:02:31.7]} 19. Qf5 {[%clk
0:02:09.4]} 19... Rfe8 {[%clk 0:02:15.8]} 20. Rfd1 {[%clk 0:01:54.5]} 20... g6
{[%clk 0:01:48.2]} 21. Qh3 {[%clk 0:01:49.2]} 21... Rad8 {[%clk 0:01:43.4]} 22.
Bb5 {[%clk 0:01:43]} 22... Rxd1+ {[%clk 0:01:40.5]} 23. Rxd1 {[%clk 0:01:42.4]}
23... Rd8 {[%clk 0:01:34.5]} 24. Re1 {[%clk 0:01:27.9]} 24... e4 {[%clk
0:01:28.6]} 25. Qh6 {[%clk 0:01:23.9]} 25... Bxf2+ {[%clk 0:01:23.4]} 26. Kxf2
{[%clk 0:01:09.8]} 26... Qc5+ {[%clk 0:01:22.5]} 27. Qe3 {[%clk 0:00:35.4]}
27... Qxb5 {[%clk 0:01:09.1]} 28. Ng5 {[%clk 0:00:32.7]} 28... Qf5+ {[%clk
0:01:03.9]} 29. Kg1 {[%clk 0:00:29.9]} 29... Rd3 {[%clk 0:01:02.2]} 30. Qg3
{[%clk 0:00:20.5]} 30... Rxg3 {[%clk 0:01:00.9]} 0-1

[Event "*** Titled Tuesday Blitz"]
[Site "Chess.com"]
[Date "2020.05.26"]
[Round "1"]
[White "dougie47"]
[Black "ThePatrick27"]
[Result "0-1"]
[WhiteElo "2237"]
[BlackElo "2582"]
[TimeControl "180+1"]
[EndTime "10:05:55 PDT"]
[Termination "ThePatrick27 won by resignation"]

1. Nf3 {[%clk 0:03:00.9]} 1... Nf6 {[%clk 0:02:58.3]} 2. c4 {[%clk 0:03:00.9]}
2... e6 {[%clk 0:02:58]} 3. g3 {[%clk 0:03:00.9]} 3... d5 {[%clk 0:02:57]} 4.
Bg2 {[%clk 0:03:01.4]} 4... Be7 {[%clk 0:02:56.9]} 5. O-O {[%clk 0:03:01]} 5...
O-O {[%clk 0:02:57]} 6. b3 {[%clk 0:03:01.5]} 6... c5 {[%clk 0:02:56.8]} 7. Bb2
{[%clk 0:03:01.2]} 7... Nc6 {[%clk 0:02:57.1]} 8. e3 {[%clk 0:03:01.1]} 8... Qd7
{[%clk 0:02:54]} 9. Qe2 {[%clk 0:02:37.1]} 9... b6 {[%clk 0:02:53.4]} 10. Nc3
{[%clk 0:02:33]} 10... Bb7 {[%clk 0:02:34.8]} 11. cxd5 {[%clk 0:02:24.5]} 11...
Nxd5 {[%clk 0:02:28.4]} 12. Nxd5 {[%clk 0:02:23.7]} 12... exd5 {[%clk 0:02:16]}
13. d4 {[%clk 0:02:22.7]} 13... Rfe8 {[%clk 0:02:08.8]} 14. Rfd1 {[%clk
0:02:20.1]} 14... a5 {[%clk 0:02:07.6]} 15. dxc5 {[%clk 0:02:03.3]} 15... Bxc5
{[%clk 0:02:08.5]} 16. Qd2 {[%clk 0:02:03.4]} 16... Red8 {[%clk 0:01:41]} 17.
Rac1 {[%clk 0:01:54.7]} 17... a4 {[%clk 0:01:38.7]} 18. Ng5 {[%clk 0:01:34.9]}
18... Qe7 {[%clk 0:01:22.9]} 19. h4 {[%clk 0:01:25.3]} 19... axb3 {[%clk
0:01:19.9]} 20. axb3 {[%clk 0:01:24.3]} 20... h6 {[%clk 0:01:18.3]} 21. Nh3
{[%clk 0:01:13.1]} 21... d4 {[%clk 0:01:11.5]} 22. exd4 {[%clk 0:01:03.8]} 22...
Nxd4 {[%clk 0:01:12.4]} 23. Bxd4 {[%clk 0:00:55]} 23... Rxd4 {[%clk 0:01:08.3]}
24. Qe1 {[%clk 0:00:45.6]} 24... Rxd1 {[%clk 0:01:06.7]} 25. Rxd1 {[%clk
0:00:44.2]} 25... Qxe1+ {[%clk 0:01:05.4]} 26. Rxe1 {[%clk 0:00:43.5]} 26...
Bxg2 {[%clk 0:01:06.3]} 27. Kxg2 {[%clk 0:00:43.6]} 27... Ra2 {[%clk 0:01:05.7]}
28. Kf3 {[%clk 0:00:39.1]} 28... Rb2 {[%clk 0:01:04.8]} 29. Re2 {[%clk
0:00:34.8]} 29... Rxb3+ {[%clk 0:01:04.3]} 30. Ke4 {[%clk 0:00:35.3]} 30... g6
{[%clk 0:01:00.9]} 31. Nf4 {[%clk 0:00:34.7]} 31... Kg7 {[%clk 0:00:56.7]} 32.
Nd3 {[%clk 0:00:31.5]} 32... f5+ {[%clk 0:00:54.7]} 0-1

[Event "*** Titled Tuesday Blitz"]
[Site "Chess.com"]
[Date "2020.05.26"]
[Round "1"]
[White "AminMolaei"]
[Black "Mostii"]
[Result "1-0"]
[WhiteElo "2725"]
[BlackElo "2366"]
[TimeControl "180+1"]
[EndTime "10:05:59 PDT"]
[Termination "AminMolaei won by resignation"]

1. d4 {[%clk 0:03:00.7]} 1... e6 {[%clk 0:02:57.2]} 2. c4 {[%clk 0:03:00.1]}
2... b6 {[%clk 0:02:37.8]} 3. e4 {[%clk 0:02:58.5]} 3... Bb7 {[%clk 0:02:38.7]}
4. Bd3 {[%clk 0:02:58.2]} 4... f5 {[%clk 0:02:37.4]} 5. exf5 {[%clk 0:02:58.1]}
5... Bxg2 {[%clk 0:02:36.1]} 6. Qh5+ {[%clk 0:02:57.5]} 6... g6 {[%clk
0:02:20.6]} 7. fxg6 {[%clk 0:02:58.4]} 7... Bg7 {[%clk 0:02:21]} 8. gxh7+ {[%clk
0:02:53.3]} 8... Kf8 {[%clk 0:02:21.3]} 9. Bg5 {[%clk 0:02:19.8]} 9... Nf6
{[%clk 0:02:09.1]} 10. Qh4 {[%clk 0:02:20.1]} 10... Qe7 {[%clk 0:02:04.6]} 11.
Ne2 {[%clk 0:02:13.3]} 11... Bxh1 {[%clk 0:01:59.4]} 12. Nf4 {[%clk 0:02:12.6]}
12... Nc6 {[%clk 0:01:59.4]} 13. Ng6+ {[%clk 0:02:11.5]} 13... Kf7 {[%clk
0:01:50.8]} 14. Nxe7 {[%clk 0:02:12.4]} 14... Nxe7 {[%clk 0:01:51.4]} 15. Nd2
{[%clk 0:01:54.5]} 15... Bb7 {[%clk 0:01:36.1]} 16. O-O-O {[%clk 0:01:38]} 16...
b5 {[%clk 0:01:36.4]} 17. Bxf6 {[%clk 0:01:33.6]} 17... Bxf6 {[%clk 0:01:34.8]}
18. Qh5+ {[%clk 0:01:33.9]} 18... Kf8 {[%clk 0:01:33.5]} 19. Rg1 {[%clk
0:01:21.8]} 19... bxc4 {[%clk 0:01:29.3]} 20. Nxc4 {[%clk 0:01:10.4]} 20... d6
{[%clk 0:01:25.8]} 21. Ne3 {[%clk 0:00:54.9]} 21... Bxd4 {[%clk 0:01:17.3]} 22.
Qh6+ {[%clk 0:00:49.9]} 22... Kf7 {[%clk 0:01:15.2]} 23. Qf4+ {[%clk 0:00:49.5]}
23... Bf6 {[%clk 0:01:06.4]} 24. Ng4 {[%clk 0:00:45.9]} 24... Nd5 {[%clk
0:01:06.8]} 25. Qh6 {[%clk 0:00:37.6]} 1-0

[Event "*** Titled Tuesday Blitz"]
[Site "Chess.com"]
[Date "2020.05.26"]
[Round "1"]
[White "kingnb"]
[Black "tamarozi99"]
[Result "1-0"]
[WhiteElo "2480"]
[BlackElo "2011"]
[TimeControl "180+1"]
[EndTime "10:05:59 PDT"]
[Termination "kingnb won on time"]

1. d4 {[%clk 0:02:58.1]} 1... Nf6 {[%clk 0:02:58.7]} 2. Nf3 {[%clk 0:02:57.7]}
2... g6 {[%clk 0:02:58.3]} 3. Bg5 {[%clk 0:02:57]} 3... Bg7 {[%clk 0:02:58.1]}
4. Nbd2 {[%clk 0:02:57.1]} 4... O-O {[%clk 0:02:57.1]} 5. e4 {[%clk 0:02:57.3]}
5... d6 {[%clk 0:02:55]} 6. Bc4 {[%clk 0:02:56.1]} 6... c5 {[%clk 0:02:53]} 7.
dxc5 {[%clk 0:02:52.5]} 7... dxc5 {[%clk 0:02:50.3]} 8. O-O {[%clk 0:02:53.4]}
8... Bg4 {[%clk 0:02:40.1]} 9. e5 {[%clk 0:02:45.5]} 9... Nfd7 {[%clk
0:02:24.2]} 10. e6 {[%clk 0:02:21.8]} 10... fxe6 {[%clk 0:01:49.7]} 11. h3
{[%clk 0:02:19.9]} 11... Ne5 {[%clk 0:01:49.2]} 12. hxg4 {[%clk 0:02:18.8]}
12... Nxc4 {[%clk 0:01:44.6]} 13. Nxc4 {[%clk 0:02:19.6]} 13... Qc7 {[%clk
0:01:42.2]} 14. Qe2 {[%clk 0:02:19.3]} 14... Nc6 {[%clk 0:01:30.3]} 15. Qxe6+
{[%clk 0:02:16.1]} 15... Kh8 {[%clk 0:01:30.5]} 16. Rad1 {[%clk 0:02:16.7]}
16... Nd4 {[%clk 0:00:51.1]} 17. Nxd4 {[%clk 0:02:16.2]} 17... cxd4 {[%clk
0:00:50.5]} 18. Rfe1 {[%clk 0:02:15.5]} 18... Rac8 {[%clk 0:00:35.4]} 19. Ne5
{[%clk 0:02:13.6]} 19... Qxc2 {[%clk 0:00:28.3]} 20. Rc1 {[%clk 0:02:05.7]}
20... Qxf2+ {[%clk 0:00:26.7]} 21. Kh1 {[%clk 0:02:02.5]} 21... Rxc1 {[%clk
0:00:20.2]} 22. Rxc1 {[%clk 0:02:03.4]} 22... Bf6 {[%clk 0:00:03.5]} 23. Nf7+
{[%clk 0:01:45.4]} 23... Kg7 {[%clk 0:00:03.5]} 24. Bh6+ {[%clk 0:01:45.1]}
24... Kg8 {[%clk 0:00:02.9]} 25. Ng5+ {[%clk 0:01:35.2]} 25... Kh8 {[%clk
0:00:02.9]} 26. Nh3 {[%clk 0:01:32.5]} 26... Qh4 {[%clk 0:00:02]} 27. Bxf8
{[%clk 0:01:31.3]} 1-0

[Event "*** Titled Tuesday Blitz"]
[Site "Chess.com"]
[Date "2020.05.26"]
[Round "1"]
[White "Nafania1"]
[Black "Indianlad"]
[Result "0-1"]
[WhiteElo "2450"]
[BlackElo "2983"]
[TimeControl "180+1"]
[EndTime "10:06:00 PDT"]
[Termination "Indianlad won by resignation"]

1. e4 {[%clk 0:03:00.9]} 1... d5 {[%clk 0:02:58.1]} 2. exd5 {[%clk 0:03:00.4]}
2... Qxd5 {[%clk 0:02:58.9]} 3. Nc3 {[%clk 0:02:59.9]} 3... Qd6 {[%clk
0:02:58.4]} 4. d4 {[%clk 0:02:59.5]} 4... Nf6 {[%clk 0:02:58.8]} 5. Nf3 {[%clk
0:02:58.9]} 5... Nc6 {[%clk 0:02:58.9]} 6. Nb5 {[%clk 0:02:51.4]} 6... Qd8
{[%clk 0:02:58.4]} 7. c4 {[%clk 0:02:50.2]} 7... a6 {[%clk 0:02:56.2]} 8. Nc3
{[%clk 0:02:49.8]} 8... e6 {[%clk 0:02:52.7]} 9. a3 {[%clk 0:02:48]} 9... b6
{[%clk 0:02:46.8]} 10. Be2 {[%clk 0:02:35.6]} 10... Bb7 {[%clk 0:02:45]} 11. O-O
{[%clk 0:02:35.5]} 11... Bd6 {[%clk 0:02:44.9]} 12. Bg5 {[%clk 0:02:25.2]} 12...
h6 {[%clk 0:02:44.9]} 13. Bh4 {[%clk 0:02:25]} 13... O-O {[%clk 0:02:44.6]} 14.
b4 {[%clk 0:02:09.3]} 14... Re8 {[%clk 0:02:35.9]} 15. Re1 {[%clk 0:01:48.2]}
15... Be7 {[%clk 0:02:22.9]} 16. h3 {[%clk 0:01:32.7]} 16... Nh5 {[%clk
0:02:20.5]} 17. Bxe7 {[%clk 0:01:30.7]} 17... Nxe7 {[%clk 0:02:16.2]} 18. Ne5
{[%clk 0:01:28.7]} 18... Nf6 {[%clk 0:02:15.7]} 19. Bf3 {[%clk 0:01:24.7]} 19...
Bxf3 {[%clk 0:02:00.8]} 20. Nxf3 {[%clk 0:01:23.3]} 20... c6 {[%clk 0:01:58.1]}
21. Qc2 {[%clk 0:01:08.1]} 21... Qc7 {[%clk 0:01:55.3]} 22. Ne4 {[%clk
0:01:04.1]} 22... Nxe4 {[%clk 0:01:53.6]} 23. Qxe4 {[%clk 0:01:03.8]} 23... Rad8
{[%clk 0:01:49.2]} 24. Rad1 {[%clk 0:01:01]} 24... b5 {[%clk 0:01:45.7]} 25. Rc1
{[%clk 0:00:59.3]} 25... Qd6 {[%clk 0:01:41]} 26. Red1 {[%clk 0:00:54.7]} 26...
bxc4 {[%clk 0:01:36.4]} 27. Rxc4 {[%clk 0:00:53.7]} 27... a5 {[%clk 0:01:37]}
28. Qc2 {[%clk 0:00:36.6]} 28... axb4 {[%clk 0:01:35.6]} 29. axb4 {[%clk
0:00:35.9]} 29... Rb8 {[%clk 0:01:24.6]} 30. Ne5 {[%clk 0:00:33.5]} 30... Rec8
{[%clk 0:01:19.7]} 31. Rc1 {[%clk 0:00:30.8]} 31... Rxb4 {[%clk 0:01:17.7]} 32.
Nxc6 {[%clk 0:00:20.6]} 32... Rxc4 {[%clk 0:01:16.2]} 33. Nxe7+ {[%clk
0:00:20.1]} 33... Qxe7 {[%clk 0:01:16.3]} 0-1

[Event "*** Titled Tuesday Blitz"]
[Site "Chess.com"]
[Date "2020.05.26"]
[Round "1"]
[White "bsnsun"]
[Black "sotochess"]
[Result "0-1"]
[WhiteElo "2489"]
[BlackElo "2180"]
[TimeControl "180+1"]
[EndTime "10:06:00 PDT"]
[Termination "sotochess won by resignation"]

1. Nf3 {[%clk 0:02:55.1]} 1... Nf6 {[%clk 0:02:59.1]} 2. c4 {[%clk 0:02:53.6]}
2... g6 {[%clk 0:02:58.8]} 3. g3 {[%clk 0:02:53.5]} 3... Bg7 {[%clk 0:02:58.4]}
4. d4 {[%clk 0:02:53.7]} 4... O-O {[%clk 0:02:58.6]} 5. Bg2 {[%clk 0:02:53.1]}
5... d6 {[%clk 0:02:57]} 6. Nc3 {[%clk 0:02:51.2]} 6... Nc6 {[%clk 0:02:57.3]}
7. O-O {[%clk 0:02:49.9]} 7... Bg4 {[%clk 0:02:56.8]} 8. h3 {[%clk 0:02:49]}
8... Bxf3 {[%clk 0:02:56.3]} 9. Bxf3 {[%clk 0:02:49.2]} 9... Nd7 {[%clk
0:02:56.2]} 10. Bg2 {[%clk 0:02:42.8]} 10... Nxd4 {[%clk 0:02:53.2]} 11. Bxb7
{[%clk 0:02:39.1]} 11... Rb8 {[%clk 0:02:53.1]} 12. Bg2 {[%clk 0:02:39.3]} 12...
c5 {[%clk 0:02:52.8]} 13. Rb1 {[%clk 0:02:32.3]} 13... Nb6 {[%clk 0:02:47.8]}
14. b3 {[%clk 0:02:25.9]} 14... Nf5 {[%clk 0:02:42.5]} 15. Qd3 {[%clk
0:02:23.5]} 15... Nd7 {[%clk 0:02:34.6]} 16. e3 {[%clk 0:02:09.2]} 16... Re8
{[%clk 0:02:33.1]} 17. Bb2 {[%clk 0:02:07.5]} 17... Qa5 {[%clk 0:02:30.4]} 18.
Bc6 {[%clk 0:02:01.9]} 18... Ne5 {[%clk 0:02:29.7]} 19. Qe4 {[%clk 0:01:59.5]}
19... Nxc6 {[%clk 0:02:29.6]} 20. Ne2 {[%clk 0:01:27.7]} 20... Bxb2 {[%clk
0:02:24.9]} 21. Rxb2 {[%clk 0:01:27.9]} 21... Ne5 {[%clk 0:02:24.8]} 22. f4
{[%clk 0:01:25.6]} 22... Nd7 {[%clk 0:02:24.4]} 23. g4 {[%clk 0:01:25.4]} 23...
Ng7 {[%clk 0:02:22.3]} 24. f5 {[%clk 0:01:22.8]} 24... Ne5 {[%clk 0:02:21.5]}
25. Nf4 {[%clk 0:01:19.9]} 25... Qc3 {[%clk 0:02:20.2]} 26. Rbf2 {[%clk
0:01:17.9]} 26... Kh8 {[%clk 0:02:15.1]} 27. Nd5 {[%clk 0:01:03]} 27... Qd3
{[%clk 0:02:12.7]} 28. Qf4 {[%clk 0:01:03.3]} 28... gxf5 {[%clk 0:02:08.1]} 29.
gxf5 {[%clk 0:01:03.2]} 29... Nh5 {[%clk 0:02:08.1]} 30. Qh4 {[%clk 0:00:55.7]}
30... Ng3 {[%clk 0:02:02.4]} 31. Nxe7 {[%clk 0:00:33.4]} 31... Rxe7 {[%clk
0:01:51.5]} 32. Qxe7 {[%clk 0:00:27]} 32... Qxe3 {[%clk 0:01:44.3]} 33. Qf6+
{[%clk 0:00:25]} 33... Kg8 {[%clk 0:01:43.9]} 34. Qxd6 {[%clk 0:00:20]} 34...
Re8 {[%clk 0:01:43.3]} 35. Rd1 {[%clk 0:00:16.1]} 35... Ne4 {[%clk 0:01:35.6]}
36. Rf1 {[%clk 0:00:13.8]} 0-1